fUSD/lending_fUSD_20241003
["ID","MTS","AMOUNT","RATE_DAILY","PERIOD"]
[339732315,1727913780078,353.77,9.739e-05,2]
[339732336,1727914231613,-323.86162,0.00010714,2]
[339732337,1727914231624,-475.13838,0.00010714,2]
[339732338,1727914231633,-162.82,0.00010959,2]
[339732339,1727914231643,-250.0,0.00011,2]
[339732340,1727914231652,-637.1649729,0.00011278,2]
[339732341,1727914231675,-161.8350271,0.00011278,2]
[339732342,1727914231684,-250.0,0.00011431,2]
[339732343,1727914231694,-157.99,0.00011433,2]
[339732344,1727914231704,-250.0,0.00011438,2]
[339732345,1727914231713,-250.0,0.00011527,2]
[339732346,1727914231725,-377.55,0.00011583,2]
[339732347,1727914231735,-759.3736,0.00011639,2]
[339732348,1727914231745,-499.99,0.00011639,2]
[339732349,1727914231755,-757.93,0.00011646,2]
[339732350,1727914231765,-1187.73,0.00011655,2]
[339732351,1727914231774,-1000.0,0.00011674,2]
[339732352,1727914231784,-218.38,0.00011674,2]
[339732353,1727914231794,-300.0,0.00011738,2]
[339732354,1727914231803,-1548.95,0.00011739,2]
[339732355,1727914231813,-152.32,0.00011739,2]
[339732356,1727914231823,-231.08,0.00011867,2]
[339732357,1727914231833,-1592.4,0.00011867,2]
[339732358,1727914231842,-799.0,0.00011872,2]
[339732359,1727914231852,-353.77,0.00012003,2]
[339732360,1727914231862,-152.9,0.000124,2]
[339732361,1727914231872,-150.0,0.000124,2]
[339732362,1727914231882,-150.0,0.00012494,2]
[339732364,1727914231892,-799.0,0.00012497,2]
[339732366,1727914231901,-150.0,0.00012497,2]
[339732368,1727914231911,-4534.5128,0.00012498,2]
[339732370,1727914231920,-10105.5081,0.00012498,2]
[339732372,1727914231930,-283.4059,0.00012498,2]
[339732374,1727914231940,-1930.1682,0.00012498,2]
[339732376,1727914231950,-56757.0,0.000125,2]
[339732378,1727914231959,-1093.57369032,0.00012544,2]
[339732380,1727914231969,-485.84806877,0.00012698,2]
[339732383,1727914231992,-14.15193123,0.00012698,2]
[339732384,1727914232002,-276.68006877,0.00012699,2]
[339732387,1727914232014,-163.08593123,0.00012699,2]
[339732389,1727914232023,-182.992,0.00012699,2]
[339732391,1727914232032,-114.35330396,0.00012699,2]
[339732410,1727914237727,-1248.30940263,0.00012699,2]
[339732411,1727914237739,-1362.66270652,0.00012699,2]
[339732412,1727914237749,-1362.66270652,0.00012699,2]
[339732413,1727914237759,-347.71335949,0.00012699,2]
[339732414,1727914237770,-1014.94934703,0.00012699,2]
[339732415,1727914237780,-1039.42863187,0.00012699,2]
[339732416,1727914237795,-323.23407465,0.00012699,2]
[339732417,1727914237804,-1000.0,0.000127,2]
[339732418,1727914237814,-2033.4147307,0.000127,2]
[339732419,1727914237823,-1386.28939443,0.000127,2]
[339732426,1727914239845,-250.86628093,0.000127,2]
[339732427,1727914239857,-396.25905534,0.000127,2]
[339732428,1727914239867,-180.45951325,0.000127,2]
[339732429,1727914239876,-78.11027493,0.000127,2]
[339732430,1727914239963,-92.4300935,0.000127,2]
[339732431,1727914239973,-201.0897051,0.000127,6]
[339732432,1727914239984,-1462.4113,0.000127,2]
[339732433,1727914239993,-225.32884433,0.000127,2]
[339732434,1727914240003,-193.68772911,0.000127,2]
[339732435,1727914240012,-1012.44521938,0.000127,2]
[339732436,1727914240021,-2039.62558268,0.000127,2]
[339732437,1727914240033,-460.37441732,0.000127,2]
[339732438,1727914240042,-1936.20918274,0.0001277,2]
[339732481,1727914245826,-1230.54993625,0.00012171,2]
[339732483,1727914245836,-1083.29453653,0.00012515,2]
[339732485,1727914245847,-1362.66270652,0.000127,2]
[339732486,1727914245856,-1362.66270652,0.000127,2]
[339732487,1727914245866,-28197.36813303,0.0001277,2]
[339732488,1727914245875,-415.89700425,0.00012773,2]
[339732489,1727914245885,-199.15185174,0.0001279,2]
[339732490,1727914245894,-11753.29624164,0.00012796,2]
[339732491,1727914245905,-1324.674,0.00012797,2]
[339732492,1727914245914,-6246.68743827,0.00012797,2]
[339732493,1727914245924,-44094.8310812,0.00012798,2]
[339732494,1727914245933,-9849.7387258,0.00012798,2]
[339732495,1727914245943,-361.60822536,0.00012799,2]
[339732496,1727914245953,-162.04244047,0.00012799,2]
[339732497,1727914245962,-1118.13,0.00012799,2]
[339732498,1727914245972,-2273.91802462,0.00012799,2]
[339732499,1727914245982,-585.0,0.000128,2]
[339732500,1727914245992,-1904.0,0.000128,2]
[339732501,1727914246002,-39219.20012273,0.000128,2]
[339732506,1727914365174,318.39,9.632e-05,2]
[339732507,1727914574989,1500.0,0.00022,120]
[339732509,1727914921800,377.4,9.834e-05,2]
[339732510,1727915154806,4226.19652061,6.94e-05,2]
[339732527,1727915428993,380.02,9.628e-05,2]
[339732530,1727915431769,-799.0,0.0001044,2]
[339732532,1727915431779,-162.09,0.00010959,2]
[339732534,1727915431789,-799.0,0.0001099,2]
[339732536,1727915431798,-884.75875,0.00010998,2]
[339732537,1727915431882,-306.48999997,0.00010998,2]
[339732566,1727915437742,-1241.05,0.00010998,2]
[339732567,1727915437753,-3145.2,0.00010998,2]
[339732568,1727915437803,-1473.84986302,0.00010998,2]
[339732569,1727915437814,-10.80786607,0.00010998,2]
[339732570,1727915437823,-300.0,0.00010999,2]
[339732571,1727915437832,-1089.47788013,0.00011,2]
[339732572,1727915437845,-2551.41220986,0.00011,2]
[339732573,1727915437856,-815.0,0.00011,2]
[339732574,1727915437871,-4314.98017366,0.00011,2]
[339732575,1727915437915,-2222.99999999,0.00011,2]
[339732576,1727915437927,-825.2976336,0.00011,2]
[339732578,1727915439836,-344.62556429,0.00011,2]
[339732579,1727915439847,-288.22722116,0.00011,2]
[339732580,1727915439858,-1703.65891765,0.00011,2]
[339732581,1727915439882,-1043.21965598,0.00011,2]
[339732582,1727915439941,-289.10683403,0.00011,2]
[339732583,1727915439999,-6875.7811777,0.00011,2]
[339732584,1727915440009,-250.0,0.00011531,2]
[339732585,1727915440017,-171.75,0.0001155,2]
[339732586,1727915440027,-799.0,0.00011568,2]
[339732587,1727915440036,-250.0,0.0001159,2]
[339732588,1727915440046,-188.77,0.00011655,2]
[339732589,1727915440055,-1718.93,0.00011746,2]
[339732590,1727915440064,-499.99,0.00011746,2]
[339732591,1727915440074,-218.46,0.00011752,2]
[339732592,1727915440084,-1000.0,0.00011839,2]
[339732593,1727915440093,-380.02,0.00011892,2]
[339732594,1727915440102,-200.0,0.00012,2]
[339732595,1727915440114,-799.0,0.00012177,2]
[339732596,1727915440123,-29999.99,0.00012177,2]
[339732597,1727915440133,-1088.3075928,0.00012544,2]
[339732598,1727915440142,-12305.23,0.00012544,2]
[339732599,1727915440151,-422.77,0.00012561,2]
[339732600,1727915440161,-152.94,0.00012644,2]
[339732601,1727915440170,-180.0,0.00012647,2]
[339732602,1727915440180,-500.0,0.00012698,2]
[339732603,1727915440189,-351.812,0.00012699,2]
[339732604,1727915440199,-182.99254141,0.00012699,2]
[339732605,1727915440208,-408.79881201,0.00012699,2]
[339732606,1727915440218,-408.79881195,0.00012699,2]
[339732607,1727915440227,-408.79881195,0.00012699,2]
[339732608,1727915440236,-408.79881195,0.00012699,2]
[339732609,1727915440246,-408.79881195,0.00012699,2]
[339732610,1727915440255,-408.79881195,0.000127,2]
[339732611,1727915440264,-408.79881195,0.000127,2]
[339732612,1727915440273,-408.79881195,0.000127,2]
[339732613,1727915440283,-408.79881195,0.000127,2]
[339732614,1727915440292,-408.79881195,0.000127,2]
[339732615,1727915440302,-9855.77220001,0.0001278,2]
[339732616,1727915440312,-20380.0,0.00012795,2]
[339732617,1727915440321,-1333.0,0.00012795,2]
[339732618,1727915440331,-262.99715666,0.00012798,2]
[339732619,1727915440341,-500.0,0.00012798,2]
[339732620,1727915440350,-353.74304811,0.00012798,2]
[339732621,1727915440359,-11076.644104,0.00012798,2]
[339732622,1727915440376,-49587.3813824,0.00012798,2]
[339732623,1727915440386,-646.0,0.00012799,2]
[339732624,1727915440395,-13315.08729816,0.00012799,2]
[339732625,1727915440407,-1064.4559759,0.00012799,2]
[339732626,1727915440417,-17145.30528289,0.00012799,2]
[339732627,1727915440443,-552.33090042,0.00012799,2]
[339732628,1727915440455,-676.78766256,0.00012799,2]
[339732629,1727915440471,-767.4,0.00012799,2]
[339732630,1727915440483,-336.40601824,0.00012799,2]
[339732631,1727915440549,-1476020.21138823,0.00012799,2]
[339732632,1727915440558,-224.57554126,0.00012799,2]
[339732633,1727915440567,-1071.54,0.00012799,2]
[339732634,1727915440577,-150.92,0.000128,2]
[339732635,1727915440586,-150.0,0.000128,2]
[339732636,1727915440595,-3788511.96345315,0.000128,2]
[339732637,1727915440607,-215439.66514335,0.000128,2]
[339732638,1727915440623,-429.15446819,0.000128,2]
[339732639,1727915440634,-2439.14814662,0.000128,2]
[339732652,1727915442908,-643.39540466,0.00012165,2]
[339732653,1727915442918,-2317.94328675,0.000128,2]
[339732654,1727915442930,-1448.63415379,0.000128,2]
[339732655,1727915442941,-2971.4261541,0.000128,2]
[339732656,1727915442952,-20492.59590905,0.000128,2]
[339732657,1727915442963,-498.7999998,0.000128,2]
[339732658,1727915442975,-4011.29080858,0.000128,2]
[339732659,1727915442986,-4650.0,0.000128,2]
[339732660,1727915442997,-10864.25129985,0.000128,2]
[339732661,1727915443008,-2851.5,0.000128,2]
[339732662,1727915443023,-1012.97035628,0.000128,2]
[339732663,1727915443035,-22528.85265892,0.000128,2]
[339732664,1727915443046,-5130.95572728,0.000128,2]
[339732665,1727915443058,-1507.29,0.000128,2]
[339732666,1727915443077,-1795.66259684,0.000128,2]
[339732667,1727915443088,-3983.23472509,0.000128,2]
[339732668,1727915443101,-2350.89459176,0.000128,2]
[339732669,1727915443113,-256.33993841,0.000128,2]
[339732670,1727915443140,-680.06549859,0.000128,2]
[339732671,1727915443198,-1039.9999,0.000128,2]
[339732673,1727915443836,-877.60613837,0.000128,2]
[339732674,1727915443848,-666.41,0.000128,2]
[339732675,1727915443859,-4720.74530425,0.000128,2]
[339732676,1727915443876,-408.56542805,0.000128,2]
[339732686,1727915445788,-1144.25759762,0.000128,2]
[339732687,1727915445799,-407.37144464,0.000128,2]
[339732688,1727915445810,-1523.78274965,0.000128,2]
[339732689,1727915445851,-1583.93695145,0.000128,2]
[339732690,1727915445913,-332.78,0.000128,2]
[339732691,1727915445923,-389.71569304,0.000128,2]
[339732692,1727915445936,-290.929047,0.000128,2]
[339732693,1727915445946,-287.6043,0.000128,2]
[339732694,1727915445960,-262.57037076,0.000128,2]
[339732695,1727915445971,-1131.90187909,0.000128,2]
[339732696,1727915445994,-4213.34436308,0.000128,2]
[339732697,1727915446085,-19633.85880664,0.000128,2]
[339732698,1727915446096,-89270.32908214,0.000128,2]
[339732700,1727915446107,-599.38775637,0.000128,2]
[339732702,1727915446118,-203856.62583767,0.000128,2]
[339732722,1727915978734,363.59,9.911e-05,2]
[339732723,1727916417902,250.0,0.00022,120]
[339732771,1727916514663,345.41,9.802e-05,2]
[339732797,1727916631963,-164.23,0.00010959,2]
[339732799,1727916631973,-162.82,0.00010959,2]
[339732801,1727916631983,-171.59727009,0.00011,2]
[339732803,1727916631998,-78.40272991,0.00011,2]
[339732805,1727916632008,-278.47834963,0.00011563,2]
[339732807,1727916632020,-250.33780553,0.00011563,2]
[339732808,1727916632033,-270.18384484,0.00011563,2]
[339732810,1727916632043,-174.76,0.0001172,2]
[339732812,1727916632053,-250.0,0.00011758,2]
[339732814,1727916632064,-1409.45,0.00011801,2]
[339732815,1727916632073,-250.0,0.00011819,2]
[339732817,1727916632083,-71.17526376,0.0001186,2]
[339732820,1727916632110,-100.57473624,0.0001186,2]
[339732822,1727916632119,-300.0,0.00012,4]
[339732823,1727916632129,-345.41,0.00012066,2]
[339732825,1727916632140,-799.0,0.00012172,2]
[339732827,1727916632149,-1000.0,0.00012301,2]
[339732828,1727916632159,-1080.00961607,0.00012544,2]
[339732829,1727916632168,-1075.20217827,0.00012544,2]
[339732830,1727916632177,-152.32,0.00012581,2]
[339732831,1727916632185,-188.77,0.00012581,2]
[339732832,1727916632195,-1195.51,0.00012581,2]
[339732833,1727916632204,-300.0,0.000126,4]
[339732835,1727916632214,-300.0,0.000126,4]
[339732837,1727916632223,-163.498044,0.000126,4]
[339732838,1727916632232,-163.498044,0.000126,4]
[339732840,1727916632243,-500.0,0.00012698,2]
[339732842,1727916632253,-281.45,0.000127,2]
[339732844,1727916632263,-153.94289181,0.000127,2]
[339732846,1727916632272,-193.6877291,0.000127,2]
[339732848,1727916632282,-153.94289176,0.00012711,2]
[339732850,1727916632292,-153.94289176,0.00012722,2]
[339732852,1727916632301,-153.94289176,0.00012733,2]
[339732854,1727916632310,-153.94289176,0.00012744,2]
[339732856,1727916632320,-153.94289176,0.00012756,2]
[339732858,1727916632330,-153.94289176,0.00012767,2]
[339732860,1727916632339,-153.94289176,0.00012778,2]
[339732862,1727916632348,-250.04401004,0.00012785,2]
[339732864,1727916632357,-153.94289176,0.00012789,2]
[339732866,1727916632367,-3824.2018035,0.00012795,2]
[339732868,1727916632376,-4624.93418526,0.00012795,2]
[339732872,1727916632403,-2810.31557355,0.00012795,2]
[339732873,1727916632415,-234.30096349,0.00012795,2]
[339732874,1727916632425,-1505.69903651,0.00012795,2]
[339732875,1727916632436,-3498.10131452,0.00012795,2]
[339732877,1727916632758,-1280.01432601,0.00012795,2]
[339732878,1727916632777,-1032.01313129,0.00012795,2]
[339732879,1727916632789,-871.5527439,0.00012795,2]
[339732880,1727916632800,-2737.33492461,0.00012795,2]
[339732881,1727916632811,-1587.35583697,0.00012795,2]
[339732882,1727916632830,-749.60047608,0.00012795,2]
[339732889,1727916637910,-488.66607066,0.00012795,2]
[339732890,1727916637922,-6094.21,0.00012795,2]
[339732891,1727916637933,-3509.58397585,0.00012795,2]
[339732892,1727916637942,-692.0536483,0.00012795,2]
[339732893,1727916637952,-597.62013368,0.00012799,2]
[339732894,1727916637961,-184.09800966,0.00012799,2]
[339732895,1727916637970,-530.0,0.000128,2]
[339732896,1727916637981,-150.0,0.000128,2]
[339732897,1727916637990,-150.0,0.000128,2]
[339732898,1727916638001,-5321.65385218,0.000128,2]
[339732899,1727916638012,-572.7999,0.000128,2]
[339732900,1727916638023,-437.70943335,0.000128,2]
[339732901,1727916638035,-5252.44382823,0.000128,2]
[339732902,1727916638046,-2216.68024884,0.000128,2]
[339732903,1727916638057,-371.59199,0.000128,2]
[339732904,1727916638078,-376.0213201,0.000128,2]
[339732905,1727916638089,-1197.7017767,0.000128,2]
[339732906,1727916638100,-255.0,0.000128,2]
[339732907,1727916638130,-397.93714718,0.000128,2]
[339732908,1727916638142,-476.81295156,0.000128,2]
[339732909,1727916638153,-283.83287331,0.000128,2]
[339732910,1727916638164,-255.17,0.000128,2]
[339732912,1727916638263,-3791.46814228,0.000128,2]
[339732915,1727916638275,-18393.2455038,0.000128,2]
[339732919,1727916639966,-27038.00154989,0.000128,2]
[339732920,1727916640198,-3493.7006738,0.000128,2]
[339732921,1727916640242,-522.77982189,0.000128,2]
[339732922,1727916640277,-1221.0,0.000128,2]
[339732923,1727916640287,-4821.6798791,0.000128,2]
[339732924,1727916640298,-308.94361421,0.000128,2]
[339732925,1727916640325,-1112.71572765,0.000128,2]
[339732926,1727916640335,-2778.37187532,0.000128,2]
[339732927,1727916640357,-5631.83559238,0.000128,2]
[339732928,1727916640368,-670.84,0.000128,2]
[339732929,1727916640379,-907.13666516,0.000128,2]
[339732930,1727916640390,-917.325,0.000128,2]
[339732931,1727916640401,-19808.27972165,0.000128,2]
[339732942,1727916643105,-204.39729,0.00012672,2]
[339732943,1727916643115,-329.19120189,0.000128,2]
[339732944,1727916643161,-500.0,0.000128,2]
[339732945,1727916643429,-61217.89892898,0.000128,2]
[339732953,1727916646043,-3469.13273792,0.000128,2]
[339733026,1727917067087,376.48,9.773e-05,2]
[339733032,1727917769658,379.06,9.544e-05,2]
[339733041,1727917832428,-175.39,0.00010959,2]
[339733042,1727917832438,-162.09,0.00010959,2]
[339733043,1727917832448,-250.0,0.00011,2]
[339733044,1727917832457,-4424.22575341,0.000114,2]
[339733045,1727917832469,-3086.22424659,0.000114,2]
[339733046,1727917832478,-858.41,0.00011453,2]
[339733048,1727917832488,-300.0,0.00011498,2]
[339733050,1727917832497,-428.0,0.000115,2]
[339733052,1727917832508,-250.0,0.00011511,2]
[339733054,1727917832518,-250.0,0.00011511,2]
[339733055,1727917832527,-491.42,0.00011512,2]
[339733057,1727917832536,-150.0,0.00011515,2]
[339733059,1727917832546,-150.0,0.00011515,2]
[339733061,1727917832555,-499.99,0.00011515,2]
[339733063,1727917832563,-188.46,0.00011537,2]
[339733065,1727917832573,-6354.77,0.00011543,2]
[339733066,1727917832583,-250.0,0.00011553,2]
[339733068,1727917832592,-2537.17,0.00011553,2]
[339733070,1727917832602,-12976.11,0.00011553,2]
[339733072,1727917832611,-150.88,0.00011553,2]
[339733073,1727917832621,-296.84,0.00011554,2]
[339733074,1727917832632,-3311.65,0.00011584,2]
[339733075,1727917832642,-819.82,0.00011608,2]
[339733076,1727917832652,-1000.0,0.00011672,2]
[339733077,1727917832662,-379.06,0.00011807,2]
[339733078,1727917832671,-428.0,0.0001184,2]
[339733079,1727917832681,-150.0,0.00011942,2]
[339733080,1727917832691,-565.2,0.00012155,2]
[339733081,1727917832700,-3574.37910406,0.00012165,2]
[339733082,1727917832738,-685.05424735,0.00012165,2]
[339733083,1727917832750,-572.13348406,0.00012165,2]
[339733090,1727917838112,-1737.61892969,0.00012165,2]
[339733091,1727917838124,-2023.00054,0.00012165,2]
[339733092,1727917838135,-948.03131688,0.00012165,2]
[339733093,1727917838146,-459.78237796,0.00012165,2]
[339733094,1727917838155,-428.0,0.0001218,2]
[339733095,1727917838164,-150.0,0.00012368,2]
[339733096,1727917838174,-163.498044,0.000125,4]
[339733097,1727917838183,-337.75961488,0.0001253,2]
[339733098,1727917838236,-90.24038512,0.0001253,2]
[339733099,1727917838246,-180.0,0.00012545,2]
[339733100,1727917838255,-151.93,0.0001256,2]
[339733101,1727917838266,-346.0605324,0.000126,4]
[339733102,1727917838298,-6.1694676,0.000126,4]
[339733103,1727917838308,-420.0,0.00012629,2]
[339733104,1727917838317,-500.0,0.00012698,2]
[339733105,1727917838326,-225.16,0.00012699,2]
[339733106,1727917838335,-350.0,0.000127,4]
[339733107,1727917838344,-2019.52879458,0.000127,2]
[339733108,1727917838354,-156.10988812,0.000127,2]
[339733109,1727917838363,-985.2345073,0.000127,2]
[339733110,1727917838372,-565.2,0.00012701,2]
[339733111,1727917838382,-985.23450729,0.00012711,2]
[339733112,1727917838391,-985.23450729,0.00012722,2]
[339733113,1727917838401,-985.23450729,0.00012733,2]
[339733114,1727917838410,-985.23450729,0.00012744,2]
[339733115,1727917838419,-985.23450729,0.00012756,2]
[339733116,1727917838428,-565.2,0.00012757,2]
[339733117,1727917838437,-985.23450729,0.00012767,2]
[339733118,1727917838447,-2745.1818,0.00012767,2]
[339733119,1727917838456,-500.0,0.00012773,2]
[339733120,1727917838465,-985.23450729,0.00012778,2]
[339733121,1727917838474,-565.2,0.00012785,2]
[339733123,1727917838483,-565.2,0.00012785,2]
[339733124,1727917838493,-565.2,0.00012785,2]
[339733126,1727917838502,-565.2,0.00012785,2]
[339733128,1727917838514,-565.2,0.00012785,2]
[339733130,1727917838523,-154.97,0.00012787,2]
[339733131,1727917838532,-565.2,0.00012787,2]
[339733133,1727917838541,-565.2,0.00012787,2]
[339733135,1727917838550,-985.23450729,0.00012789,2]
[339733137,1727917838559,-468.56593578,0.0001279,2]
[339733139,1727917838568,-468.56593578,0.0001279,2]
[339733141,1727917838577,-468.56593578,0.0001279,2]
[339733143,1727917838586,-565.2,0.0001279,2]
[339733145,1727917838595,-565.2,0.0001279,2]
[339733147,1727917838604,-565.2,0.0001279,2]
[339733149,1727917838613,-565.2,0.0001279,2]
[339733151,1727917838623,-565.2,0.0001279,2]
[339733153,1727917838634,-565.2,0.0001279,2]
[339733155,1727917838643,-565.2,0.0001279,2]
[339733157,1727917838653,-565.2,0.0001279,2]
[339733159,1727917838661,-565.2,0.0001279,2]
[339733161,1727917838670,-565.2,0.0001279,2]
[339733163,1727917838680,-219.30266981,0.00012795,2]
[339733165,1727917838689,-31123.5481882,0.00012795,2]
[339733167,1727917838698,-2931.0382797,0.00012795,2]
[339733169,1727917838708,-5971.6947391,0.00012795,2]
[339733171,1727917838717,-646.20689727,0.00012799,2]
[339733173,1727917838727,-500.0,0.00012799,2]
[339733175,1727917838737,-1026.89,0.00012799,2]
[339733177,1727917838746,-542.0,0.000128,2]
[339733179,1727917838755,-978875.23532614,0.000128,2]
[339733182,1727917838789,-800.0,0.000128,2]
[339733314,1727917840288,-2133.33339132,0.00012797,2]
[339733419,1727917846189,-849.11141635,0.0001253,2]
[339733420,1727917846199,-489.94858365,0.00012797,2]
[339733428,1727917966441,230.895744,0.00022,120]
[339733429,1727917966744,230.895744,0.00022,120]
[339733430,1727917967095,230.895744,0.00022,120]
[339733431,1727917967386,230.895744,0.00022,120]
[339733432,1727917967778,230.895744,0.00022,120]
[339733433,1727917967815,500.0,0.00021999,120]
[339733434,1727917968213,230.895744,0.00022,120]
[339733435,1727917968240,500.0,0.00021999,120]
[339733436,1727917968485,2393.5,0.00021999,120]
[339733437,1727917968540,500.0,0.00021999,120]
[339733438,1727917968570,230.895744,0.00022,120]
[339733439,1727917968813,2393.5,0.00021999,120]
[339733440,1727917968861,230.895744,0.00022,120]
[339733441,1727917968897,500.0,0.00021999,120]
[339733442,1727917969723,2393.5,0.00021999,120]
[339733443,1727917969756,230.895744,0.00022,120]
[339733444,1727917969783,500.0,0.00021999,120]
[339733445,1727917969856,1558.2980552,0.00021999,120]
[339733515,1727918051361,3988.21,0.00021,60]
[339733516,1727918051702,3988.21,0.00021,60]
[339733519,1727918052026,3988.21,0.00021,60]
[339733521,1727918052398,3988.21,0.00021,60]
[339733522,1727918052670,3988.21,0.00021,60]
[339733524,1727918052914,3141.41,0.00021,60]
[339733525,1727918052960,3988.21,0.00021,60]
[339733526,1727918053212,3141.41,0.00021,60]
[339733527,1727918053254,3988.21,0.00021,60]
[339733528,1727918053371,697.48,0.00021,60]
[339733529,1727918053398,812.75,0.00021,60]
[339733530,1727918053550,3141.41,0.00021,60]
[339733531,1727918053605,3988.21,0.00021,60]
[339733532,1727918053734,697.48,0.00021,60]
[339733533,1727918053761,812.75,0.00021,60]
[339733535,1727918053962,3988.21,0.00021,60]
[339733536,1727918053995,3141.41,0.00021,60]
[339733537,1727918054023,697.48,0.00021,60]
[339733538,1727918054690,812.75,0.00021,60]
[339733539,1727918054752,3988.21,0.00021,60]
[339733540,1727918054780,1059.78,0.00021,60]
[339733541,1727918054816,697.48,0.00021,60]
[339733542,1727918054845,3141.41,0.00021,60]
[339733543,1727918054884,812.75,0.00021,60]
[339733544,1727918054917,500.0,0.00021,60]
[339733545,1727918054956,500.0,0.00021,60]
[339733546,1727918055246,1059.78,0.00021,60]
[339733547,1727918055274,697.48,0.00021,60]
[339733548,1727918055320,812.75,0.00021,60]
[339733549,1727918055352,3141.41,0.00021,60]
[339733550,1727918055380,500.0,0.00021,60]
[339733551,1727918055410,500.0,0.00021,60]
[339733552,1727918055438,1059.78,0.00021,60]
[339733553,1727918055469,697.48,0.00021,60]
[339733554,1727918055499,3988.21,0.00021,60]
[339733555,1727918055609,812.75,0.00021,60]
[339733556,1727918055636,3141.41,0.00021,60]
[339733557,1727918055670,500.0,0.00021,60]
[339733558,1727918055698,500.0,0.00021,60]
[339733559,1727918055729,1059.78,0.00021,60]
[339733560,1727918055759,697.48,0.00021,60]
[339733561,1727918055896,500.0,0.00021,60]
[339733562,1727918055926,812.75,0.00021,60]
[339733563,1727918055956,3141.41,0.00021,60]
[339733564,1727918055995,500.0,0.00021,60]
[339733565,1727918056023,1059.78,0.00021,60]
[339733566,1727918056068,697.48,0.00021,60]
[339733567,1727918056095,3988.21,0.00021,60]
[339733568,1727918056123,3141.41,0.00021,60]
[339733569,1727918056152,812.75,0.00021,60]
[339733570,1727918056180,500.0,0.00021,60]
[339733571,1727918056209,500.0,0.00021,60]
[339733572,1727918056240,500.0,0.00021,60]
[339733573,1727918056278,1059.78,0.00021,60]
[339733574,1727918056315,697.48,0.00021,60]
[339733575,1727918056344,3988.21,0.00021,60]
[339733576,1727918056374,3141.41,0.00021,60]
[339733577,1727918056403,500.0,0.00021,60]
[339733578,1727918056437,812.75,0.00021,60]
[339733579,1727918056467,500.0,0.00021,60]
[339733580,1727918056505,500.0,0.00021,60]
[339733581,1727918056533,1059.78,0.00021,60]
[339733582,1727918056565,697.48,0.00021,60]
[339733583,1727918056593,3988.21,0.00021,60]
[339733584,1727918056624,3141.41,0.00021,60]
[339733585,1727918056675,500.0,0.00021,60]
[339733586,1727918056715,812.75,0.00021,60]
[339733587,1727918056840,500.0,0.00021,60]
[339733588,1727918056870,500.0,0.00021,60]
[339733589,1727918056898,697.48,0.00021,60]
[339733590,1727918056938,3988.21,0.00021,60]
[339733591,1727918056966,468.43364283,0.00021,60]
[339733592,1727918056993,3141.41,0.00021,60]
[339733593,1727918057030,812.75,0.00021,60]
[339733594,1727918057064,500.0,0.00021,60]
[339733595,1727918057090,500.0,0.00021,60]
[339733596,1727918057121,1059.78,0.00021,60]
[339733597,1727918057208,697.48,0.00021,60]
[339733598,1727918057291,3141.41,0.00021,60]
[339733599,1727918057319,3988.21,0.00021,60]
[339733600,1727918057348,812.75,0.00021,60]